{"text_format":"1","workbook":"xlsx","n_sheets":2,"sheets":["Виды работ","Смета"],"not_rendered":{"charts":0,"images":0,"macros":1,"external_links":0,"defined_names":0,"comments":0,"pivot_tables":0},"unopened":[],"bounds":{"document_bytes":16777216,"sheet_cells":100000,"rows_first":2000,"rows_last":500,"rows_between":2000,"halvings":0,"cell_chars":16384,"cell_head_chars":4096},"cells_cut":0,"cells_raw":0,"read":"whole","date_system":"1900"}

{"sheet":"Виды работ","index":0,"n_rows":137,"n_cols":4,"rows_kept":137,"cut":false,"hidden":false,"merged":[]}
[]
[]
[]
[null,null,"Кол-во"]
["Стены","Столбец1","Столбец2","Столбец3"]
["Грунтовка ","a","кв.м."]
["Демонтаж оконного блока","a","комп"]
["Демонтаж стен 4","a","кв.м."]
["Демонтаж штукатурки","a","кв.м."]
["Монтаж закладных ","a","шт"]
["Монтаж из  ГКЛВ коробов",null,"м.п "]
["Монтаж из двойного ГКЛ перегородок",null,"кв.м"]
["Окраска стен ","a","кв.м."]
["Подготовка стен под окраска с проклейкой стеклообоев ",null,"кв.м."]
["Подготовка стен под поклейку обоев","a","кв.м."]
["Поклейка фотообоев",null,"кв.м."]
["Установка люк-ревизия под плитку ","a","шт"]
["Штукатурка по маякам",null,"кв.м."]
[]
[]
[]
[]
[]
["Потолки","Столбец1","Столбец2","Столбец3"]
["Устройство  ГКЛ потолка двухуровн. с шумоизоляцией",null,"кв.м."]
["Устройство  ГКЛ коробов  с шумоизоляцией",null,"мп"]
["Монтаж закладных ","a","шт"]
["Проклейка швов стыковочной лентой ",null,"мп"]
["Грунтовка ",null,"кв.м."]
["Шпатлевание","a","кв.м."]
["Шлифовка",null,"кв.м."]
["Грунтовка ","a","кв.м."]
["Окл+A38ейка обоями паутинка ","a","кв.м."]
["Шпатлевание финишное ",null,"кв.м."]
["Монтаж галтелей",null,"пог.м."]
["Окраска  галтелей",null,"пог.м."]
["Нанесение декоративной штукатурки ",null,"кв.м."]
["Окраска на 2 раза",null,"кв.м."]
[]
[]
[]
[]
["Полы","Столбец1","Столбец2","Столбец3"]
["Демонтаж стяжки ",null,"кв.м"]
["Монтаж звукоизоляции Шуманет 100 ",null,"кв.м"]
["Монтаж подиумов ","a","комп "]
["Стяжка","a","кв.м"]
["Грунтовка ","a","кв.м"]
["Заливка ровнителем ","a","кв.м"]
["Настил ламината ",null,"кв.м"]
["Расчистка пола, грунтовка ","a","кв.м"]
["Гидроизоляция на 2 раза с проклейкой углов стен","a","кв.м"]
["Монтаж плинтуса ",null,"пог.м"]
[]
[]
["Облицовочные работы","Столбец1","Столбец2","Столбец3"]
["Укладка плитки стены","a","кв.м."]
["Формирование углов под 90 градусов",null,"пог.м"]
["Облицовка барной стойки ",null,"комп "]
["Укладка плитки полы",null,"кв.м."]
[]
["Плотницкие  работы","Столбец1","Столбец2","Столбец3"]
["Монтаж дверей с фурнитурой","a","шт"]
["Монтаж кассеты ","a","шт"]
["Монтаж молдингов","a","шт"]
["Монтаж фурнитуры ",null,"шт"]
["Монтаж карнизов ",null,"шт"]
["Монтаж отбойников",null,"шт"]
[]
[]
[]
["Сантехнические работы  ","Столбец1","Столбец2","Столбец3"]
["Отключение водоснабжения ",null,"комп"]
["Перемонтаж коллектора входного",null,"комп"]
["Демонтаж батарей",null,"шт"]
["монтаж временной схемы водопровода ",null,"комп"]
["монтаж трассы водопровода в попу между санузлами ",null,"м.п "]
["монтаж полотенцесушила",null,"шт"]
["монтаж конвекторов ",null,"комп"]
["перемотаж трубы отопления ",null,"комп"]
["монтаж  ГВС И ХВС",null,"комп"]
["монтаж  коллекторов ",null,"комп"]
[" монтаж  фановой трубы",null,"комп"]
[" монтаж  трапов ",null,"комп"]
["врезка в стояк фановой трубы",null,"комп"]
["Монтаж батареи",null,"шт"]
["Монтаж ванны",null,"шт"]
["Монтаж унитаза с инсталляцией","a","шт"]
["Монтаж душевого смесителя",null,"шт"]
["Монтаж раковины со смесителем ",null,"шт"]
["Монтаж стиральной машины",null,"шт"]
[]
[]
[]
["Работы по балкону ","Столбец1","Столбец2","Столбец3"]
["Демонтаж плит",null,"шт"]
["Утепление мин ватой ","a","шт"]
["Герметизация швов","a","шт"]
["Монтаж плит","a","шт"]
["Монтаж гипрока в один слой",null,"шт"]
["Монтаж коробов ","a","шт"]
["Окраска кирпича ",null,"м"]
["Монтаж карнизов ",null,"шт"]
[]
[]
[]
["Откосы (малярные работы)","Столбец1","Столбец2","Столбец3"]
["Штукатурка ",null,"пог.м."]
["Шпатлевание","a","пог.м."]
["шлифовка",null,"пог.м."]
["грунтовка","a","пог.м."]
["Оклейка обоями",null,"пог.м."]
["Монтаж галтелей из гипса ",null,"пог.м."]
["Окраска  галтелей",null,"пог.м."]
["окраска откосов ",null,"пог.м."]
["Герметизация швов акрилом",null,"пог.м."]
[]
[]
["Электромонтажные работы","Столбец1","Столбец2","Столбец3"]
["Подключение временной схемы",null,"комп"]
["Прокладка кабеля ",null,"пог.м."]
["Монтаж воздуховодов ",null,"пог.м."]
["Монтаж и подключение вентиляторов ","a","пог.м."]
["Прокладка кабеля  слаботочного",null,"пог.м."]
["Установка розеток и выключателей,с коробкой","a","шт"]
["Монтаж и подключение теплого пола",null,"кв.м."]
["Подключение приборов",null,"шт"]
["Монтаж и наладка видеопроектора  ",null,"шт"]
["Монтаж экрана ",null,"шт"]
["Монтаж и подключение люстр",null,"шт"]
["Монтаж и подключение бра",null,"шт"]
["Монтаж и подключение точечных светильников",null,"шт"]
["Монтаж ленты светодиодной ",null,"пог.м."]
["Штробление и проходы в стене",null,"пог.м."]
["Установка распаечных коробок",null,"шт"]
["Монтаж и расключение щита слаботочного",null,"шт"]
["Монтаж и расключение щита",null,"комп"]

{"sheet":"Смета","index":1,"n_rows":231,"n_cols":7,"rows_kept":231,"cut":false,"hidden":false,"merged":[]}
[null,"Смета  на ремонтно-отделочные и иные работы."]
[null,"Объект:     "]
[]
["№","Наименование","Кол-во","Ед.изм","Цена","Сумма","Комментарии"]
[null,"Стены"]
[null,"Грунтовка ",null,{"$f":"IFERROR(VLOOKUP($B6,'Виды работ'!$A$6:$F$18,COLUMN(C1),0),\"\")","v":"кв.м."},{"$f":"IFERROR(VLOOKUP($B6,'Виды работ'!$A$6:$F$18,COLUMN(D1),0),\"\")","v":0},{"$f":"C6*E6","v":0}]
[null,"Демонтаж оконного блока",null,{"$f":"IFERROR(VLOOKUP($B7,'Виды работ'!$A$6:$F$18,COLUMN(C2),0),\"\")","v":"комп"},{"$f":"IFERROR(VLOOKUP($B7,'Виды работ'!$A$6:$F$18,COLUMN(D2),0),\"\")","v":0},{"$f":"C7*E7","v":0}]
[null,"Демонтаж стен 4",null,{"$f":"IFERROR(VLOOKUP($B8,'Виды работ'!$A$6:$F$18,COLUMN(C3),0),\"\")","v":"кв.м."},{"$f":"IFERROR(VLOOKUP($B8,'Виды работ'!$A$6:$F$18,COLUMN(D3),0),\"\")","v":0},0]
[null,"Демонтаж штукатурки",null,{"$f":"IFERROR(VLOOKUP($B9,'Виды работ'!$A$6:$F$18,COLUMN(C4),0),\"\")","v":"кв.м."},{"$f":"IFERROR(VLOOKUP($B9,'Виды работ'!$A$6:$F$18,COLUMN(D4),0),\"\")","v":0},0]
[null,"Монтаж закладных ",null,{"$f":"IFERROR(VLOOKUP($B10,'Виды работ'!$A$6:$F$18,COLUMN(C5),0),\"\")","v":"шт"},{"$f":"IFERROR(VLOOKUP($B10,'Виды работ'!$A$6:$F$18,COLUMN(D5),0),\"\")","v":0},0]
[null,"Окраска стен ",null,{"$f":"IFERROR(VLOOKUP($B11,'Виды работ'!$A$6:$F$18,COLUMN(C6),0),\"\")","v":"кв.м."},{"$f":"IFERROR(VLOOKUP($B11,'Виды работ'!$A$6:$F$18,COLUMN(D6),0),\"\")","v":0},0]
[null,"Подготовка стен под поклейку обоев",null,{"$f":"IFERROR(VLOOKUP($B12,'Виды работ'!$A$6:$F$18,COLUMN(C7),0),\"\")","v":"кв.м."},{"$f":"IFERROR(VLOOKUP($B12,'Виды работ'!$A$6:$F$18,COLUMN(D7),0),\"\")","v":0},0]
[null,"Установка люк-ревизия под плитку ",null,{"$f":"IFERROR(VLOOKUP($B13,'Виды работ'!$A$6:$F$18,COLUMN(C8),0),\"\")","v":"шт"},{"$f":"IFERROR(VLOOKUP($B13,'Виды работ'!$A$6:$F$18,COLUMN(D8),0),\"\")","v":0},0]
[null,null,null,{"$f":"IFERROR(VLOOKUP($B14,'Виды работ'!$A$6:$F$18,COLUMN(C9),0),\"\")","v":""},{"$f":"IFERROR(VLOOKUP($B14,'Виды работ'!$A$6:$F$18,COLUMN(D9),0),\"\")","v":""},{"$error":"#VALUE!"}]
[null,null,null,{"$f":"IFERROR(VLOOKUP($B15,'Виды работ'!$A$6:$F$18,COLUMN(C10),0),\"\")","v":""},{"$f":"IFERROR(VLOOKUP($B15,'Виды работ'!$A$6:$F$18,COLUMN(D10),0),\"\")","v":""},{"$error":"#VALUE!"}]
[null,null,null,{"$f":"IFERROR(VLOOKUP($B16,'Виды работ'!$A$6:$F$18,COLUMN(C11),0),\"\")","v":""},{"$f":"IFERROR(VLOOKUP($B16,'Виды работ'!$A$6:$F$18,COLUMN(D11),0),\"\")","v":""},{"$error":"#VALUE!"}]
[null,null,null,{"$f":"IFERROR(VLOOKUP($B17,'Виды работ'!$A$6:$F$18,COLUMN(C12),0),\"\")","v":""},{"$f":"IFERROR(VLOOKUP($B17,'Виды работ'!$A$6:$F$18,COLUMN(D12),0),\"\")","v":""},{"$error":"#VALUE!"}]
[null,null,null,{"$f":"IFERROR(VLOOKUP($B18,'Виды работ'!$A$6:$F$18,COLUMN(C13),0),\"\")","v":""},{"$f":"IFERROR(VLOOKUP($B18,'Виды работ'!$A$6:$F$18,COLUMN(D13),0),\"\")","v":""},{"$error":"#VALUE!"}]
[null,null,null,{"$f":"IFERROR(VLOOKUP($B19,'Виды работ'!$A$6:$F$18,COLUMN(C14),0),\"\")","v":""},{"$f":"IFERROR(VLOOKUP($B19,'Виды работ'!$A$6:$F$18,COLUMN(D14),0),\"\")","v":""},{"$error":"#VALUE!"}]
[null,null,null,{"$f":"IFERROR(VLOOKUP($B20,'Виды работ'!$A$6:$F$18,COLUMN(C15),0),\"\")","v":""},{"$f":"IFERROR(VLOOKUP($B20,'Виды работ'!$A$6:$F$18,COLUMN(D15),0),\"\")","v":""},{"$error":"#VALUE!"}]
[null,null,null,{"$f":"IFERROR(VLOOKUP($B21,'Виды работ'!$A$6:$F$18,COLUMN(C16),0),\"\")","v":""},{"$f":"IFERROR(VLOOKUP($B21,'Виды работ'!$A$6:$F$18,COLUMN(D16),0),\"\")","v":""},{"$error":"#VALUE!"}]
[null,null,null,{"$f":"IFERROR(VLOOKUP($B22,'Виды работ'!$A$6:$F$18,COLUMN(C17),0),\"\")","v":""},{"$f":"IFERROR(VLOOKUP($B22,'Виды работ'!$A$6:$F$18,COLUMN(D17),0),\"\")","v":""},{"$error":"#VALUE!"}]
[null,null,null,{"$f":"IFERROR(VLOOKUP($B23,'Виды работ'!$A$6:$F$18,COLUMN(C18),0),\"\")","v":""},{"$f":"IFERROR(VLOOKUP($B23,'Виды работ'!$A$6:$F$18,COLUMN(D18),0),\"\")","v":""},{"$error":"#VALUE!"}]
[null,null,null,{"$f":"IFERROR(VLOOKUP($B24,'Виды работ'!$A$6:$F$18,COLUMN(C19),0),\"\")","v":""},{"$f":"IFERROR(VLOOKUP($B24,'Виды работ'!$A$6:$F$18,COLUMN(D19),0),\"\")","v":""},{"$error":"#VALUE!"}]
[null,null,null,{"$f":"IFERROR(VLOOKUP($B25,'Виды работ'!$A$6:$F$18,COLUMN(C20),0),\"\")","v":""},{"$f":"IFERROR(VLOOKUP($B25,'Виды работ'!$A$6:$F$18,COLUMN(D20),0),\"\")","v":""},{"$error":"#VALUE!"}]
[]
[null,"Материалы \"Стены\""]
[]
[]
[]
[]
[]
[]
[]
[]
[]
[]
[]
[]
[]
[]
[null,null,null,null,"Итого \"Материалы\""]
[null,"Потолки"]
[null,"Монтаж закладных "]
[null,"Шпатлевание"]
[null,"Грунтовка "]
[null,"Окл+A38ейка обоями паутинка "]
[null,""]
[null,""]
[null,""]
[null,""]
[null,""]
[null,""]
[null,""]
[null,""]
[null,""]
[null,""]
[]
[]
[]
[]
[null,"Материалы \"Потолки\""]
[]
[]
[]
[]
[]
[]
[]
[]
[]
[]
[]
[]
[]
[]
[]
[]
[]
[null,null,null,null,"Итого \"Материалы\""]
[null,"Полы"]
[null,"Монтаж подиумов "]
[null,"Стяжка"]
[null,"Грунтовка "]
[null,"Заливка ровнителем "]
[null,"Расчистка пола, грунтовка "]
[null,"Гидроизоляция на 2 раза с проклейкой углов стен"]
[]
[]
[]
[]
[]
[null,"Материалы \"Полы\""]
[]
[]
[]
[]
[]
[]
[]
[]
[]
[]
[null,null,null,null,"Итого \"Материалы\""]
[null,"Облицовочные работы"]
[null,"Укладка плитки стены"]
[]
[]
[]
[]
[null,"Материалы"]
[]
[]
[]
[null,null,null,null,"Итого \"Материалы\""]
[null,"Плотницкие  работы"]
[null,"Монтаж дверей с фурнитурой"]
[null,"Монтаж кассеты "]
[null,"Монтаж молдингов"]
[]
[]
[]
[]
[]
[null,"Материалы"]
[]
[]
[]
[]
[null,null,null,null,"Итого \"Материалы\""]
[null,"Сантехнические работы  "]
[null,"Монтаж унитаза с инсталляцией"]
[]
[]
[]
[]
[]
[]
[]
[]
[]
[]
[]
[]
[]
[]
[]
[]
[]
[]
[]
[]
[null,"Материалы"]
[]
[]
[]
[]
[]
[]
[]
[]
[]
[]
[null,null,null,null,"Итого \"Материалы\""]
[null,"Работы по балкону "]
[null,"Утепление мин ватой "]
[null,"Герметизация швов"]
[null,"Монтаж плит"]
[null,"Монтаж коробов "]
[]
[]
[]
[]
[]
[null,"Материалы"]
[]
[]
[]
[]
[]
[]
[]
[null,null,null,"Итого \"Материалы\""]
[null,"Откосы (малярные работы)"]
[null,"Шпатлевание"]
[null,"грунтовка"]
[]
[]
[]
[]
[]
[]
[]
[]
[null,"Материалы"]
[]
[]
[]
[]
[]
[]
[]
[]
[]
[]
[null,null,null,"Итого \"Материалы\""]
[null,"Электромонтажные работы"]
[null,"Монтаж и подключение вентиляторов "]
[null,"Установка розеток и выключателей,с коробкой"]
[]
[]
[]
[]
[]
[]
[]
[]
[]
[]
[]
[]
[]
[]
[]
[]
[]
[null,"Материалы "]
[]
[]
[]
[null,null,null,"Итого \"Материалы\""]